lending/lending_fUSD_20240131
["ID","MTS","AMOUNT","RATE_DAILY","PERIOD"]
[313060705,1706703047826,-500.0,0.00038356,5]
[313060706,1706703047836,-673.55,0.00038356,2]
[313060707,1706703047845,-500.0,0.00038356,5]
[313060708,1706703047853,-504.4,0.00038356,5]
[313060709,1706703047863,-204.85847797,0.00038356,5]
[313060710,1706703047872,-500.0,0.00038356,5]
[313060711,1706703047881,-500.0,0.00038356,2]
[313060712,1706703047890,-500.0,0.00038356,5]
[313060713,1706703047899,-176.37,0.00038356,5]
[313060714,1706703047909,-500.0,0.00038356,5]
[313060715,1706703047923,-1000.0,0.00038356,2]
[313060716,1706703047932,-520.83,0.00038356,5]
[313060717,1706703047941,-520.83,0.00038356,5]
[313060718,1706703047950,-500.0,0.00038356,5]
[313060719,1706703047962,-500.0,0.00038356,5]
[313060720,1706703047974,-500.0,0.00038356,5]
[313060721,1706703047983,-500.0,0.00038356,5]
[313060722,1706703047993,-500.0,0.00038356,5]
[313060723,1706703048004,-354.37,0.00038356,5]
[313060724,1706703048013,-154.11347526,0.00038356,5]
[313060725,1706703048023,-500.0,0.00038356,5]
[313060726,1706703048034,-500.0,0.00038356,5]
[313060727,1706703048045,-500.0,0.00038356,5]
[313060728,1706703048054,-554.77407135,0.00038356,5]
[313060729,1706703048063,-500.0,0.00038356,5]
[313060730,1706703048073,-500.0,0.00038356,5]
[313060731,1706703048081,-516.09042419,0.00038356,2]
[313060732,1706703048090,-501.85995366,0.00038356,5]
[313060733,1706703048100,-500.0,0.00038356,5]
[313060734,1706703048109,-500.0,0.00038356,5]
[313060735,1706703048121,-500.0,0.00038356,5]
[313060736,1706703048131,-189.89817517,0.00038356,5]
[313060737,1706703048141,-500.0,0.00038356,5]
[313060738,1706703048149,-179.89031591,0.00038356,5]
[313060739,1706703048159,-582.12166806,0.00038356,5]
[313060740,1706703048169,-572.93,0.00038356,5]
[313060741,1706703048178,-500.0,0.00038356,5]
[313060742,1706703048186,-500.0,0.00038356,5]
[313060743,1706703048195,-213.18996981,0.00038356,5]
[313060744,1706703048204,-500.0,0.00038356,5]
[313060745,1706703048213,-919.0,0.00038356,5]
[313060746,1706703048222,-162.51845433,0.00038356,5]
[313060747,1706703048231,-2868.97,0.00038356,5]
[313060748,1706703048240,-688.15,0.00038356,5]
[313060749,1706703048249,-1117.35,0.00038356,5]
[313060750,1706703048258,-500.0,0.00038356,5]
[313060751,1706703048267,-632.31663599,0.00038356,5]
[313060752,1706703048276,-500.0,0.00038356,5]
[313060753,1706703048285,-500.0,0.00038356,5]
[313060754,1706703048295,-522.24,0.00038356,5]
[313060755,1706703048304,-500.0,0.00038356,5]
[313060756,1706703048313,-556.20644697,0.00038356,5]
[313060757,1706703048322,-500.0,0.00038356,5]
[313060758,1706703048331,-500.0,0.00038356,5]
[313060759,1706703048340,-735.02,0.00038356,5]
[313060760,1706703048349,-745.27,0.00038356,5]
[313060761,1706703048358,-500.0,0.00038356,5]
[313060762,1706703048368,-500.0,0.00038356,5]
[313060763,1706703048377,-500.0,0.00038356,5]
[313060764,1706703048386,-476.79401286,0.00038356,5]
[313060765,1706703048395,-500.0,0.00038356,5]
[313060766,1706703048404,-500.0,0.00038356,5]
[313060767,1706703048413,-529.91,0.00038356,5]
[313060768,1706703048422,-559.86456837,0.00038356,5]
[313060769,1706703048431,-1382.81,0.00038356,5]
[313060770,1706703048440,-500.0,0.00038356,5]
[313060771,1706703048449,-500.0,0.00038356,5]
[313060772,1706703048458,-526.02,0.00038356,5]
[313060773,1706703048467,-500.0,0.00038356,5]
[313060774,1706703048476,-500.0,0.00038356,5]
[313060775,1706703048485,-880.02,0.00038356,5]
[313060776,1706703048494,-500.0,0.00038356,5]
[313060777,1706703048504,-972.75,0.00038356,5]
[313060778,1706703048513,-500.0,0.00038356,5]
[313060779,1706703048522,-621.66,0.00038356,5]
[313060780,1706703048531,-164.23289444,0.00038356,5]
[313060781,1706703048540,-500.0,0.00038356,5]
[313060782,1706703048549,-500.0,0.00038356,5]
[313060783,1706703048558,-857.93,0.00038356,5]
[313060784,1706703048568,-500.0,0.00038356,5]
[313060785,1706703048577,-500.0,0.00038356,5]
[313060786,1706703048586,-500.0,0.00038356,5]
[313060787,1706703048595,-905.73,0.00038356,5]
[313060788,1706703048604,-500.0,0.00038356,5]
[313060789,1706703048614,-500.0,0.00038356,5]
[313060790,1706703048623,-614.7,0.00038356,5]
[313060791,1706703048632,-278.63082933,0.00038356,5]
[313060792,1706703048641,-628.3,0.00038356,5]
[313060793,1706703048650,-500.0,0.00038356,5]
[313060794,1706703048659,-1700.97,0.00038356,5]
[313060795,1706703048668,-3379.45,0.00038356,5]
[313060796,1706703048678,-3475.57,0.00038356,5]
[313060797,1706703048687,-1124.54,0.00038356,5]
[313060798,1706703048696,-826.99,0.00038356,5]
[313060799,1706703048705,-503.98388588,0.00038356,5]
[313060800,1706703048715,-500.0,0.00038356,5]
[313060801,1706703048724,-500.0,0.00038356,5]
[313060802,1706703048733,-636.84,0.00038356,5]
[313060803,1706703048742,-500.0,0.00038356,5]
[313060804,1706703048752,-500.0,0.00038356,5]
[313060805,1706703048761,-542.97,0.00038356,5]
[313060806,1706703048771,-2830.73,0.00038356,5]
[313060807,1706703048780,-500.0,0.00038356,5]
[313060808,1706703048791,-1311.33,0.00038356,5]
[313060809,1706703048799,-521.35,0.00038356,5]
[313060810,1706703048809,-937.77,0.00038356,5]
[313060811,1706703048818,-500.0,0.00038356,5]
[313060812,1706703048828,-500.0,0.00038356,5]
[313060813,1706703048837,-411.67934568,0.00038356,5]
[313060814,1706703048847,-500.0,0.00038356,5]
[313060815,1706703048856,-500.0,0.00038356,5]
[313060816,1706703048865,-694.85,0.00038356,5]
[313060817,1706703048874,-500.0,0.00038356,5]
[313060818,1706703048883,-1087.58,0.00038356,5]
[313060819,1706703048892,-500.0,0.00038356,5]
[313060820,1706703048901,-500.0,0.00038356,5]
[313060821,1706703048911,-695.37,0.00038356,5]
[313060822,1706703048924,-734.41,0.00038356,5]
[313060823,1706703048934,-500.0,0.00038356,5]
[313060824,1706703048943,-500.0,0.00038356,5]
[313060825,1706703048951,-3009.59,0.00038356,5]
[313060826,1706703048962,-500.0,0.00038356,5]
[313060827,1706703048971,-500.0,0.00038356,5]
[313060828,1706703048980,-500.0,0.00038356,5]
[313060829,1706703048990,-574.66,0.00038356,5]
[313060830,1706703049166,-2334.49,0.00038356,5]
[313060831,1706703049176,-1295.63,0.00038356,5]
[313060832,1706703049186,-500.0,0.00038356,5]
[313060833,1706703049196,-500.0,0.00038356,5]
[313060834,1706703049205,-500.0,0.00038356,5]
[313060835,1706703049214,-744.92,0.00038356,5]
[313060836,1706703049224,-550.49,0.00038356,5]
[313060837,1706703049233,-566.37,0.00038356,5]
[313060838,1706703049243,-500.0,0.00038356,5]
[313060839,1706703049253,-500.0,0.00038356,5]
[313060840,1706703049262,-538.22,0.00038356,5]
[313060841,1706703049272,-1386.86,0.00038356,5]
[313060842,1706703049281,-500.0,0.00038356,5]
[313060843,1706703049291,-500.0,0.00038356,5]
[313060844,1706703049301,-548.14111269,0.00038356,5]
[313060845,1706703049311,-336.43888871,0.00038356,5]
[313060846,1706703049330,-723.45111129,0.00038356,5]
[313060847,1706703049341,-1065.61,0.00038356,5]
[313060848,1706703049352,-703.51,0.00038356,5]
[313060849,1706703049362,-379.89408109,0.00038356,5]
[313060850,1706703049373,-718.88,0.00038356,5]
[313060851,1706703049382,-519.57,0.00038356,5]
[313060852,1706703049391,-1789.59,0.00038356,5]
[313060853,1706703049401,-573.59,0.00038356,5]
[313060854,1706703049410,-692.24,0.00038356,5]
[313060855,1706703049419,-500.0,0.00038356,5]
[313060856,1706703049428,-500.0,0.00038356,5]
[313060857,1706703049437,-918.96,0.00038356,5]
[313060858,1706703049447,-500.0,0.00038356,5]
[313060859,1706703049456,-635.24,0.00038356,5]
[313060860,1706703049466,-1567.09,0.00038356,5]
[313060861,1706703049475,-500.0,0.00038356,5]
[313060862,1706703049484,-500.0,0.00038356,5]
[313060863,1706703049493,-907.83,0.00038356,5]
[313060864,1706703049502,-500.0,0.00038356,5]
[313060865,1706703049512,-500.0,0.00038356,2]
[313060866,1706703049522,-500.0,0.00038356,5]
[313060867,1706703049531,-1226.17,0.00038356,5]
[313060868,1706703049541,-500.0,0.00038356,2]
[313060869,1706703049550,-808.11,0.00038356,5]
[313060870,1706703049560,-500.0,0.00038356,5]
[313060871,1706703049569,-500.0,0.00038356,5]
[313060872,1706703049579,-500.0,0.00038356,5]
[313060873,1706703049589,-653.08,0.00038356,5]
[313060874,1706703049598,-500.0,0.00038356,5]
[313060875,1706703049608,-718.46,0.00038356,5]
[313060876,1706703049618,-978.52,0.00038356,5]
[313060877,1706703049628,-261.46598447,0.00038356,5]
[313060878,1706703049638,-1502.68,0.00038356,5]
[313060879,1706703049647,-500.0,0.00038356,5]
[313060880,1706703049656,-1566.11,0.00038356,5]
[313060881,1706703049666,-1326.41,0.00038356,5]
[313060882,1706703049676,-500.0,0.00038356,5]
[313060883,1706703049686,-500.0,0.00038356,5]
[313060884,1706703049695,-500.0,0.00038356,5]
[313060885,1706703049704,-1000.0,0.00038356,7]
[313060886,1706703049714,-500.0,0.00038356,5]
[313060887,1706703049723,-498.94006,0.00038356,5]
[313060888,1706703049733,-500.0,0.00038356,5]
[313060889,1706703049742,-1592.04,0.00038356,5]
[313060890,1706703049752,-1000.0,0.00038367,2]
[313060891,1706703049761,-209.190445,0.00038434,7]
[313060892,1706703049770,-150.0,0.00038441,2]
[313060893,1706703049780,-176.76,0.00038446,2]
[313060894,1706703049789,-198.32886547,0.00038465,8]
[313060895,1706703049798,-254.06736285,0.00038513,7]
[313060896,1706703049807,-152.07013522,0.00038514,2]
[313060897,1706703049817,-152.07013522,0.00038514,2]
[313060898,1706703049826,-166.87502528,0.00038583,3]
[313060899,1706703049836,-800.0,0.00038632,8]
[313060900,1706703049847,-198.32886547,0.00038684,9]
[313060901,1706703049855,-166.87,0.000387,4]
[313060902,1706703049864,-1017.63256252,0.00038783,2]
[313060903,1706703049874,-205.36682409,0.00038783,2]
[313060904,1706703049883,-152.13483531,0.00038783,2]
[313060905,1706703049895,-156.17555083,0.00038783,2]
[313060906,1706703049904,-211.36385689,0.00038783,2]
[313060907,1706703049916,-154.39897374,0.00038794,2]
[313060914,1706703102384,176.49,0.00016933,2]
[313060945,1706703633604,-150.0,0.00033392,4]
[313061017,1706704231703,-622.67114989,0.00032665,2]
[313061019,1706704231715,-2575.70066479,0.00032665,2]
[313061021,1706704231724,-1000.0,0.00032666,4]
[313061022,1706704231733,-206.0,0.00032667,2]
[313061024,1706704231743,-428.78973116,0.00033292,120]
[313061025,1706704231760,-451.63886766,0.00033292,120]
[313061026,1706704231771,-453.61020118,0.00033292,120]
[313061027,1706704231781,-368.337341,0.00033393,2]
[313061028,1706704231790,-350.61,0.00033714,2]
[313061029,1706704231799,-150.0,0.00034074,2]
[313061030,1706704231808,-176.76,0.00034074,2]
[313061031,1706704231818,-176.76,0.00034622,2]
[313061032,1706704231827,-160.90318559,0.00034974,2]
[313061033,1706704231839,-45477.33410603,0.00035074,4]
[313061034,1706704231850,-3634.30130605,0.00035075,6]
[313061035,1706704231861,-4310.16211443,0.00035075,6]
[313061036,1706704231871,-176.76,0.0003517,2]
[313061037,1706704231881,-250.0,0.00035329,111]
[313061038,1706704231890,-250.0,0.00035345,2]
[313061039,1706704231900,-281.0,0.00035358,2]
[313061040,1706704231910,-3872.28681184,0.00035418,2]
[313061041,1706704231926,-340.1393542,0.00035418,2]
[313061055,1706704237740,-712.44210412,0.00035418,2]
[313061056,1706704237755,-1955.221034,0.00035418,2]
[313061057,1706704237851,-17019.91069584,0.00035418,2]
[313061058,1706704237861,-600.0,0.00035479,2]
[313061059,1706704237870,-165.15,0.00035574,2]
[313061060,1706704237879,-158.19,0.00035627,2]
[313061061,1706704237888,-250.0,0.00035627,2]
[313061062,1706704237897,-2000.0,0.00035637,2]
[313061063,1706704237906,-200.0,0.00035637,2]
[313061064,1706704237916,-954.25059585,0.00035666,4]
[313061065,1706704237925,-353.23,0.00035718,2]
[313061066,1706704237935,-150.0,0.00035802,2]
[313061067,1706704237945,-164.49,0.00035804,120]
[313061068,1706704237954,-384.2,0.00035813,2]
[313061069,1706704237964,-162.0,0.00035924,2]
[313061070,1706704237974,-350.61,0.00035978,2]
[313061071,1706704237983,-1000.0,0.000362,2]
[313061072,1706704237993,-400.0,0.00036215,2]
[313061073,1706704238002,-1979.805,0.00036422,2]
[313061074,1706704238012,-2865.0,0.00036422,2]
[313061075,1706704238022,-698.624,0.00036422,2]
[313061076,1706704238031,-342.383,0.00036422,2]
[313061077,1706704238045,-705.0,0.00036422,2]
[313061078,1706704238054,-158.19,0.00036555,2]
[313061079,1706704238063,-206.0,0.00036571,10]
[313061080,1706704238073,-157.21,0.00036624,2]
[313061082,1706704238083,-150.0,0.0003673,2]
[313061084,1706704238092,-150.0,0.00036814,2]
[313061086,1706704238101,-1812.06513757,0.00036937,4]
[313061088,1706704238111,-11049.80814694,0.00037,3]
[313061091,1706704238123,-1227.84208256,0.00037,3]
[313061093,1706704238135,-10222.25511676,0.00037,3]
[313061095,1706704238145,-298.01270489,0.00037278,2]
[313061097,1706704238154,-384.2,0.00037457,2]
[313061099,1706704238163,-158.19,0.00037483,2]
[313061101,1706704238173,-237.7827,0.0003787,15]
[313061103,1706704238182,-3801.0702,0.000379,2]
[313061106,1706704238192,-150.0,0.00037977,2]
[313061108,1706704238201,-6113.88437835,0.00038,7]
[313061111,1706704238221,-498.33401005,0.00038,7]
[313061113,1706704238233,-2013.15,0.00038,7]
[313061117,1706704238257,-13185.51840333,0.00038,7]
[313061163,1706704240508,-975.809809,0.00038,7]
[313061164,1706704240520,-5744.41625394,0.00038,7]
[313061165,1706704240581,-17080.0,0.00038,7]
[313061166,1706704240819,-42349.92700001,0.00038,7]
[313061167,1706704240832,-270.17983787,0.00038,7]
[313061168,1706704240843,-851.18699985,0.00038,7]
[313061169,1706704241261,-110917.5933076,0.00038,7]
[313061170,1706704241271,-165.2740546,0.00038141,8]
[313061171,1706704241282,-350.61,0.00038241,2]
[313061172,1706704241297,-1278.5411,0.00038256,2]
[313061173,1706704241311,-26078.8756201,0.00038256,2]
[313061175,1706704241323,-26023.3504799,0.00038256,2]
[313061177,1706704241333,-1574.0,0.000383,7]
[313061179,1706704241344,-201.99882704,0.00038354,4]
[313061181,1706704241353,-207.80245874,0.00038355,4]
[313061183,1706704241363,-500.0,0.00038356,5]
[313061185,1706704241373,-686.56,0.00038356,2]
[313061187,1706704241383,-500.0,0.00038356,2]
[313061189,1706704241393,-591.34334373,0.00038356,5]
[313061191,1706704241403,-500.0,0.00038356,5]
[313061194,1706704241413,-500.0,0.00038356,5]
[313061197,1706704241423,-500.0,0.00038356,5]
[313061199,1706704241432,-205.22035321,0.00038356,5]
[313061202,1706704241442,-500.0,0.00038356,5]
[313061205,1706704241452,-500.0,0.00038356,5]
[313061207,1706704241462,-500.0,0.00038356,5]
[313061209,1706704241471,-500.0,0.00038356,5]
[313061211,1706704241481,-500.0,0.00038356,5]
[313061213,1706704241490,-660.19,0.00038356,7]
[313061215,1706704241501,-808.12,0.00038356,5]
[313061217,1706704241510,-622.33,0.00038356,2]
[313061220,1706704241520,-308.9,0.00038356,5]
[313061222,1706704241529,-500.0,0.00038356,5]
[313061223,1706704241539,-500.0,0.00038356,5]
[313061226,1706704241548,-500.0,0.00038356,5]
[313061227,1706704241558,-500.0,0.00038356,5]
[313061229,1706704241567,-500.0,0.00038356,5]
[313061231,1706704241577,-500.0,0.00038356,5]
[313061233,1706704241586,-500.0,0.00038356,5]
[313061235,1706704241596,-500.0,0.00038356,5]
[313061237,1706704241605,-500.0,0.00038356,5]
[313061238,1706704241615,-500.0,0.00038356,5]
[313061240,1706704241624,-500.0,0.00038356,5]
[313061242,1706704241634,-542.65008041,0.00038356,5]
[313061243,1706704241644,-500.0,0.00038356,5]
[313061245,1706704241654,-500.0,0.00038356,5]
[313061247,1706704241664,-500.0,0.00038356,5]
[313061249,1706704241674,-500.0,0.00038356,5]
[313061250,1706704241683,-500.0,0.00038356,5]
[313061252,1706704241692,-500.0,0.00038356,5]
[313061254,1706704241702,-500.0,0.00038356,5]
[313061256,1706704241711,-500.0,0.00038356,5]
[313061257,1706704241720,-1090.08,0.00038356,5]
[313061259,1706704241729,-500.0,0.00038356,5]
[313061261,1706704241738,-500.0,0.00038356,5]
[313061263,1706704241747,-500.0,0.00038356,5]
[313061264,1706704241755,-500.0,0.00038356,5]
[313061266,1706704241765,-500.0,0.00038356,5]
[313061268,1706704241774,-500.0,0.00038356,5]
[313061269,1706704241783,-500.0,0.00038356,5]
[313061271,1706704241792,-500.0,0.00038356,5]
[313061273,1706704241800,-564.03,0.00038356,5]
[313061275,1706704241810,-1447.29,0.00038356,5]
[313061277,1706704241819,-500.0,0.00038356,5]
[313061278,1706704241828,-500.0,0.00038356,5]
[313061280,1706704241837,-549.85,0.00038356,5]
[313061282,1706704241848,-500.0,0.00038356,5]
[313061284,1706704241856,-500.0,0.00038356,5]
[313061285,1706704241865,-500.0,0.00038356,5]
[313061287,1706704241874,-500.0,0.00038356,5]
[313061289,1706704241884,-500.0,0.00038356,2]
[313061291,1706704241893,-500.0,0.00038356,5]
[313061292,1706704241904,-500.0,0.00038356,5]
[313061294,1706704241913,-500.0,0.00038356,5]
[313061296,1706704241922,-500.0,0.00038356,5]
[313061298,1706704241931,-473.24162773,0.00038356,5]
[313061300,1706704241940,-500.0,0.00038356,5]
[313061301,1706704241949,-500.0,0.00038356,5]
[313061303,1706704241959,-500.0,0.00038356,5]
[313061305,1706704241968,-774.44,0.00038356,5]
[313061307,1706704241979,-3055.64,0.00038356,5]
[313061308,1706704241987,-1500.85,0.00038356,5]
[313061310,1706704241997,-500.0,0.00038356,5]
[313061312,1706704242006,-500.0,0.00038356,5]
[313061313,1706704242015,-1271.14,0.00038356,5]
[313061315,1706704242024,-500.0,0.00038356,5]
[313061317,1706704242033,-1525.7,0.00038356,5]
[313061319,1706704242042,-500.0,0.00038356,5]
[313061321,1706704242051,-659.48,0.00038356,5]
[313061323,1706704242060,-500.0,0.00038356,5]
[313061325,1706704242069,-500.48,0.00038356,5]
[313061326,1706704242078,-500.0,0.00038356,5]
[313061328,1706704242087,-880.71,0.00038356,5]
[313061330,1706704242096,-714.22,0.00038356,5]
[313061332,1706704242106,-704.39,0.00038356,5]
[313061333,1706704242114,-843.36,0.00038356,5]
[313061335,1706704242123,-2749.43,0.00038356,5]
[313061336,1706704242132,-261.47900779,0.00038356,5]
[313061337,1706704242141,-500.0,0.00038356,5]
[313061338,1706704242149,-500.0,0.00038356,5]
[313061339,1706704242158,-500.0,0.00038356,5]
[313061340,1706704242168,-654.52902432,0.00038356,5]
[313061345,1706704242675,-167.66097568,0.00038356,5]
[313061346,1706704242685,-462.07847112,0.00038356,5]
[313061347,1706704242784,-608.72152888,0.00038356,5]
[313061348,1706704242793,-500.0,0.00038356,5]
[313061349,1706704242802,-500.0,0.00038356,5]
[313061350,1706704242811,-872.65743035,0.00038356,5]
[313061351,1706704242822,-260.63381433,0.00038356,5]
[313061352,1706704242839,-191.89875532,0.00038356,5]
[313061353,1706704242850,-210.26218115,0.00038356,5]
[313061354,1706704242897,-316.71781885,0.00038356,5]
[313061355,1706704242906,-500.0,0.00038356,5]
[313061356,1706704242916,-312.80360414,0.00038356,5]
[313061357,1706704242927,-619.41639586,0.00038356,5]
[313061358,1706704242936,-792.53,0.00038356,5]
[313061359,1706704242946,-595.75,0.00038356,5]
[313061360,1706704242955,-500.0,0.00038356,5]
[313061361,1706704242964,-500.0,0.00038356,5]
[313061362,1706704242973,-507.83,0.00038356,5]
[313061363,1706704242983,-3457.72,0.00038356,5]
[313061364,1706704242993,-602.12,0.00038356,5]
[313061365,1706704243002,-500.0,0.00038356,5]
[313061366,1706704243011,-500.0,0.00038356,5]
[313061368,1706704243021,-500.0,0.00038356,5]
[313061370,1706704243030,-610.3,0.00038356,5]
[313061372,1706704243039,-500.0,0.00038356,5]
[313061374,1706704243048,-500.0,0.00038356,5]
[313061376,1706704243057,-500.0,0.00038356,5]
[313061377,1706704243066,-3238.64,0.00038356,5]
[313061379,1706704243076,-364.88569376,0.00038356,5]
[313061381,1706704243085,-3330.76,0.00038356,5]
[313061383,1706704243095,-626.72,0.00038356,5]
[313061385,1706704243104,-500.0,0.00038356,5]
[313061386,1706704243114,-500.0,0.00038356,5]
[313061388,1706704243123,-500.0,0.00038356,5]
[313061390,1706704243132,-500.0,0.00038356,5]
[313061392,1706704243142,-500.0,0.00038356,5]
[313061394,1706704243151,-867.99,0.00038356,5]
[313061395,1706704243160,-500.0,0.00038356,5]
[313061397,1706704243170,-500.0,0.00038356,5]
[313061399,1706704243179,-1241.64,0.00038356,5]
[313061401,1706704243188,-666.39,0.00038356,5]
[313061403,1706704243197,-500.0,0.00038356,5]
[313061404,1706704243206,-1630.1,0.00038356,5]
[313061405,1706704243215,-500.0,0.00038356,5]
[313061407,1706704243224,-898.7,0.00038356,5]
[313061409,1706704243234,-942.97,0.00038356,5]
[313061411,1706704243243,-550.71,0.00038356,5]
[313061413,1706704243252,-500.0,0.00038356,5]
[313061415,1706704243261,-703.81,0.00038356,5]
[313061417,1706704243270,-500.0,0.00038356,5]
[313061419,1706704243279,-520.35,0.00038356,5]
[313061421,1706704243290,-713.89,0.00038356,5]
[313061422,1706704243301,-1256.69,0.00038356,5]
[313061423,1706704243311,-500.0,0.00038356,5]
[313061424,1706704243321,-2884.19,0.00038356,5]
[313061425,1706704243330,-515.79,0.00038356,5]
[313061426,1706704243339,-500.0,0.00038356,5]
[313061427,1706704243349,-542.78,0.00038356,5]
[313061428,1706704243360,-500.0,0.00038356,5]
[313061429,1706704243369,-500.0,0.00038356,5]
[313061430,1706704243379,-500.0,0.00038356,5]
[313061431,1706704243387,-500.0,0.00038356,5]
[313061432,1706704243397,-1021.21,0.00038356,5]
[313061433,1706704243406,-1042.27,0.00038356,5]
[313061434,1706704243415,-500.0,0.00038356,5]
[313061435,1706704243424,-500.0,0.00038356,5]
[313061436,1706704243433,-500.0,0.00038356,5]
[313061437,1706704243443,-500.0,0.00038356,5]
[313061438,1706704243452,-500.0,0.00038356,5]
[313061439,1706704243462,-2237.22,0.00038356,5]
[313061440,1706704243471,-663.39,0.00038356,5]
[313061441,1706704243481,-1175.08,0.00038356,5]
[313061442,1706704243490,-500.0,0.00038356,5]
[313061443,1706704243500,-1015.73,0.00038356,5]
[313061444,1706704243509,-549.69,0.00038356,5]
[313061445,1706704243519,-500.0,0.00038356,5]
[313061446,1706704243529,-500.0,0.00038356,5]
[313061447,1706704243539,-500.0,0.00038356,5]
[313061448,1706704243548,-500.0,0.00038356,5]
[313061449,1706704243558,-500.0,0.00038356,5]
[313061450,1706704243568,-527.55,0.00038356,5]
[313061451,1706704243577,-500.0,0.00038356,5]
[313061452,1706704243586,-500.0,0.00038356,5]
[313061453,1706704243595,-558.04,0.00038356,5]
[313061454,1706704243605,-1329.08,0.00038356,5]
[313061455,1706704243614,-937.74,0.00038356,5]
[313061456,1706704243624,-1152.82,0.00038356,5]
[313061457,1706704243633,-1501.8,0.00038356,5]
[313061458,1706704243643,-688.93,0.00038356,5]
[313061459,1706704243653,-500.0,0.00038356,5]
[313061460,1706704243663,-674.19,0.00038356,5]
[313061461,1706704243672,-500.0,0.00038356,5]
[313061462,1706704243682,-752.43,0.00038356,5]
[313061463,1706704243691,-500.0,0.00038356,5]
[313061464,1706704243700,-500.0,0.00038356,5]
[313061465,1706704243710,-500.0,0.00038356,2]
[313061466,1706704243721,-1715.03,0.00038356,5]
[313061467,1706704243731,-625.87,0.00038356,5]
[313061468,1706704243740,-500.0,0.00038356,2]
[313061469,1706704243750,-500.0,0.00038356,5]
[313061470,1706704243760,-500.0,0.00038356,5]
[313061471,1706704243770,-1440.07,0.00038356,5]
[313061472,1706704243781,-870.01,0.00038356,5]
[313061473,1706704243791,-500.0,0.00038356,5]
[313061474,1706704243801,-688.52,0.00038356,5]
[313061475,1706704243811,-549.06,0.00038356,5]
[313061476,1706704243820,-500.0,0.00038356,5]
[313061477,1706704243830,-880.67,0.00038356,5]
[313061478,1706704243840,-500.0,0.00038356,5]
[313061479,1706704243850,-500.0,0.00038356,5]
[313061480,1706704243861,-2928.32,0.00038356,5]
[313061481,1706704243870,-165.27405455,0.00038469,8]
[313061482,1706704243880,-3487.1474305,0.00038492,7]
[313061483,1706704243890,-152.07013522,0.00038514,2]
[313061484,1706704243899,-150.0,0.00038525,2]
[313061485,1706704243910,-173.527683,0.00038536,8]
[313061486,1706704243920,-153.14,0.000386,3]
[313061487,1706704243930,-166.89,0.00038604,3]
[313061488,1706704243941,-500.0,0.00038781,5]
[313061489,1706704243950,-500.0,0.00038782,5]
[313061490,1706704243959,-500.0,0.00038782,5]
[313061491,1706704243969,-500.0,0.00038782,5]
[313061492,1706704243979,-645.49,0.00038782,2]
[313061493,1706704243988,-1000.0,0.00038782,2]
[313061494,1706704243998,-465.58960609,0.00038782,5]
[313061495,1706704244007,-500.0,0.00038782,5]
[313061496,1706704244017,-500.0,0.00038782,5]
[313061497,1706704244027,-462.17302831,0.00038782,5]
[313061498,1706704244037,-500.0,0.00038782,5]